fUST/lending_fUST_20250613
["ID","MTS","AMOUNT","RATE_DAILY","PERIOD"]
[365567877,1749791433854,-263.59893537,0.00022473,2]
[365567878,1749791433864,-500.0,0.00022473,2]
[365567879,1749791433874,-168.99,0.00022489,3]
[365567880,1749791433884,-253.49,0.00022489,3]
[365567881,1749791433896,-760.49,0.00022489,3]
[365567882,1749791433906,-5278.43,0.00022489,10]
[365567883,1749791433916,-4398.69,0.00022489,10]
[365567884,1749791433928,-3665.58,0.00022489,10]
[365567885,1749791433938,-3054.65,0.00022489,10]
[365567886,1749791433951,-172.54243213,0.00022498,2]
[365567887,1749791433962,-32518.40204549,0.00022499,2]
[365567888,1749791433972,-50731.41408846,0.00022499,2]
[365567889,1749791433982,-438.09685098,0.00022499,2]
[365567890,1749791433992,-298.70425522,0.00022499,2]
[365567891,1749791434002,-500.0,0.00022499,2]
[365567892,1749791434012,-500.0,0.00022499,2]
[365567893,1749791434022,-643.19987792,0.00022499,2]
[365567894,1749791434031,-1476.05015101,0.00022499,2]
[365567895,1749791434041,-500.0,0.00022499,2]
[365567896,1749791434051,-500.0,0.00022499,2]
[365567897,1749791434062,-1476.05015101,0.00022499,2]
[365567898,1749791434072,-500.0,0.00022499,2]
[365567899,1749791434082,-500.0,0.00022499,2]
[365567900,1749791434093,-500.0,0.00022499,2]
[365567902,1749791434115,-500.0,0.00022499,2]
[365567903,1749791434125,-500.0,0.00022499,2]
[365567904,1749791434135,-1476.05015101,0.00022499,2]
[365567905,1749791434147,-420.95067919,0.00022499,2]
[365567907,1749791434157,-200.21640511,0.00022499,2]
[365567909,1749791434167,-1476.05015101,0.00022499,2]
[365567911,1749791434177,-500.0,0.00022499,2]
[365567913,1749791434187,-500.0,0.00022499,2]
[365567915,1749791434198,-1476.05015101,0.00022499,2]
[365567917,1749791434209,-500.0,0.00022499,2]
[365567919,1749791434219,-598.30124951,0.00022499,2]
[365567921,1749791434229,-1476.05015101,0.00022499,2]
[365567923,1749791434238,-1476.05015101,0.00022499,2]
[365567925,1749791434248,-500.0,0.00022499,2]
[365567928,1749791434258,-1476.05015101,0.00022499,2]
[365567930,1749791434268,-435.05706555,0.00022499,2]
[365567932,1749791434277,-1476.05015101,0.00022499,2]
[365567934,1749791434290,-1476.05015101,0.00022499,2]
[365567936,1749791434300,-1476.05015101,0.00022499,2]
[365567938,1749791434310,-1476.05015101,0.00022499,2]
[365567940,1749791434320,-1476.05015101,0.00022499,2]
[365567942,1749791434331,-1476.05015101,0.00022499,2]
[365567944,1749791434341,-1476.05015101,0.00022499,2]
[365567946,1749791434351,-1476.05015101,0.00022499,2]
[365567948,1749791434361,-1476.05015101,0.00022499,2]
[365567950,1749791434371,-1476.05015101,0.00022499,2]
[365567952,1749791434381,-1476.05015101,0.00022499,2]
[365567954,1749791434391,-1476.05015101,0.00022499,2]
[365567956,1749791434401,-1476.05015101,0.00022499,2]
[365567958,1749791434411,-1476.05015101,0.00022499,2]
[365567960,1749791434421,-1476.05015101,0.00022499,2]
[365567962,1749791434432,-1476.05015101,0.00022499,2]
[365567964,1749791434442,-1476.05015101,0.00022499,2]
[365567966,1749791434453,-1476.05015101,0.00022499,2]
[365567969,1749791434463,-1476.05015101,0.00022499,2]
[365567971,1749791434475,-1476.05015101,0.00022499,2]
[365567973,1749791434486,-1476.05015101,0.00022499,2]
[365567975,1749791434497,-1476.05015101,0.00022499,2]
[365567977,1749791434507,-1476.05015101,0.00022499,2]
[365567979,1749791434518,-1476.05015101,0.00022499,2]
[365567981,1749791434528,-1476.05015101,0.00022499,2]
[365567983,1749791434538,-1476.05015101,0.00022499,2]
[365567985,1749791434549,-1476.05015101,0.00022499,2]
[365567987,1749791434560,-1476.05015101,0.00022499,2]
[365567989,1749791434569,-1476.05015101,0.00022499,2]
[365567991,1749791434579,-1476.05015101,0.00022499,2]
[365567993,1749791434589,-1476.05015101,0.00022499,2]
[365567995,1749791434600,-1476.05015101,0.00022499,2]
[365567997,1749791434610,-1476.05015101,0.00022499,2]
[365567999,1749791434620,-1476.05015101,0.00022499,2]
[365568001,1749791434630,-1476.05015101,0.00022499,2]
[365568004,1749791434641,-1476.05015101,0.00022499,2]
[365568005,1749791434651,-1476.05015101,0.00022499,2]
[365568007,1749791434661,-1476.05015101,0.00022499,2]
[365568009,1749791434671,-1688.71266275,0.00022499,2]
[365568011,1749791434681,-1688.71266275,0.00022499,2]
[365568013,1749791434691,-1688.71266275,0.00022499,2]
[365568015,1749791434700,-1688.71266275,0.00022499,2]
[365568017,1749791434709,-1688.71266275,0.00022499,2]
[365568019,1749791434719,-1688.71266275,0.00022499,2]
[365568021,1749791434729,-1688.71266275,0.00022499,2]
[365568023,1749791434738,-1688.71266275,0.00022499,2]
[365568025,1749791434747,-1688.71266275,0.00022499,2]
[365568028,1749791434757,-1688.71266275,0.00022499,2]
[365568030,1749791434766,-1688.71266275,0.00022499,2]
[365568032,1749791434775,-1688.71266275,0.00022499,2]
[365568034,1749791434785,-1688.71266275,0.00022499,2]
[365568036,1749791434794,-1688.71266275,0.00022499,2]
[365568038,1749791434803,-1688.71266275,0.00022499,2]
[365568040,1749791434813,-1688.71266275,0.00022499,2]
[365568042,1749791434822,-1688.71266275,0.00022499,2]
[365568044,1749791434831,-1688.71266275,0.00022499,2]
[365568046,1749791434842,-1688.71266275,0.00022499,2]
[365568048,1749791434855,-1688.71266275,0.00022499,2]
[365568050,1749791434866,-1688.71266275,0.00022499,2]
[365568052,1749791434875,-1688.71266275,0.00022499,2]
[365568054,1749791434885,-1688.71266275,0.00022499,2]
[365568056,1749791434894,-1688.71266275,0.00022499,2]
[365568058,1749791434903,-1688.71266275,0.00022499,2]
[365568060,1749791434913,-1688.71266275,0.00022499,2]
[365568062,1749791434924,-1688.71266275,0.00022499,2]
[365568064,1749791434935,-1688.71266275,0.00022499,2]
[365568066,1749791434947,-1660.56745171,0.00022499,2]
[365568068,1749791434957,-1660.56745171,0.00022499,2]
[365568070,1749791434967,-1660.56745171,0.00022499,2]
[365568072,1749791434977,-1660.56745171,0.00022499,2]
[365568074,1749791434986,-1660.56745171,0.00022499,2]
[365568077,1749791434997,-1660.56745171,0.00022499,2]
[365568079,1749791435006,-1660.56745171,0.00022499,2]
[365568081,1749791435016,-1660.56745171,0.00022499,2]
[365568083,1749791435025,-1660.56745171,0.00022499,2]
[365568085,1749791435035,-1660.56745171,0.00022499,2]
[365568087,1749791435045,-1660.56745171,0.00022499,2]
[365568089,1749791435054,-1660.56745171,0.00022499,2]
[365568091,1749791435064,-500.0,0.00022499,2]
[365568093,1749791435073,-500.0,0.00022499,2]
[365568095,1749791435083,-500.0,0.00022499,2]
[365568097,1749791435094,-500.0,0.00022499,2]
[365568099,1749791435103,-515.70067957,0.00022499,2]
[365568101,1749791435113,-423.32386519,0.00022499,2]
[365568103,1749791435123,-594.25169385,0.00022499,2]
[365568105,1749791435133,-500.0,0.00022499,2]
[365568107,1749791435143,-500.0,0.00022499,2]
[365568109,1749791435153,-500.0,0.00022499,2]
[365568112,1749791435163,-500.0,0.00022499,2]
[365568114,1749791435172,-165.14822669,0.00022499,2]
[365568116,1749791435182,-500.0,0.00022499,2]
[365568123,1749791435194,-500.0,0.00022499,2]
[365568124,1749791435330,-472.2312722,0.00022499,2]
[365568125,1749791435340,-626.86856571,0.00022499,2]
[365568126,1749791435350,-551.5129012,0.00022499,2]
[365568127,1749791435359,-300.0,0.00022499,2]
[365568128,1749791435370,-500.0,0.00022499,2]
[365568130,1749791435380,-583.1016615,0.00022499,2]
[365568131,1749791435390,-500.0,0.00022499,2]
[365568132,1749791435400,-460.0,0.00022499,4]
[365568134,1749791435410,-460.0,0.00022499,4]
[365568136,1749791435419,-460.0,0.00022499,4]
[365568138,1749791435428,-460.0,0.000225,4]
[365568140,1749791435438,-460.0,0.000225,4]
[365568142,1749791435449,-460.0,0.000225,4]
[365568144,1749791435458,-460.0,0.000225,4]
[365568146,1749791435468,-460.0,0.000225,4]
[365568148,1749791435477,-499.38770431,0.000225,4]
[365568150,1749791435487,-460.0,0.000225,4]
[365568152,1749791435496,-540.0662772,0.000225,4]
[365568154,1749791435506,-460.0,0.000225,4]
[365568156,1749791435515,-460.0,0.000225,4]
[365568158,1749791435526,-3093.16700575,0.00022521,7]
[365568160,1749791435535,-160.0,0.00022582,2]
[365568162,1749791435545,-160.0,0.00022582,2]
[365568164,1749791435555,-160.0,0.00022582,2]
[365568166,1749791435564,-424.32678023,0.00022582,2]
[365568168,1749791435574,-160.0,0.00022582,2]
[365568170,1749791435584,-844.94977992,0.00022582,2]
[365568172,1749791435593,-213.24139183,0.00022582,2]
[365568174,1749791435603,-160.38421903,0.00022611,2]
[365568176,1749791435612,-151.0,0.00022611,2]
[365568178,1749791435622,-207.4,0.00022611,2]
[365568180,1749791435632,-5000.0,0.00022611,2]
[365568182,1749791435641,-1379.95989952,0.00022611,2]
[365568184,1749791435650,-1703.55011971,0.00022611,2]
[365568186,1749791435661,-500.0,0.00022611,2]
[365568188,1749791435670,-500.0,0.00022611,2]
[365568190,1749791435680,-500.0,0.00022611,2]
[365568192,1749791435689,-500.0,0.00022611,2]
[365568194,1749791435700,-500.0,0.00022611,2]
[365568196,1749791435709,-500.0,0.00022611,2]
[365568198,1749791435719,-500.0,0.00022611,2]
[365568200,1749791435728,-500.0,0.00022611,2]
[365568202,1749791435738,-500.0,0.00022611,2]
[365568204,1749791435748,-500.0,0.00022611,2]
[365568206,1749791435757,-500.0,0.00022611,2]
[365568208,1749791435767,-500.0,0.00022611,2]
[365568210,1749791435777,-500.0,0.00022611,2]
[365568212,1749791435786,-500.0,0.00022611,2]
[365568214,1749791435795,-500.0,0.00022611,2]
[365568215,1749791435804,-500.0,0.00022611,2]
[365568217,1749791435813,-500.0,0.00022611,2]
[365568219,1749791435823,-500.0,0.00022611,2]
[365568221,1749791435833,-500.0,0.00022611,2]
[365568223,1749791435843,-500.0,0.00022611,2]
[365568225,1749791435856,-500.0,0.00022611,2]
[365568226,1749791435866,-500.0,0.00022611,2]
[365568229,1749791435876,-500.0,0.00022611,2]
[365568230,1749791435886,-500.0,0.00022611,2]
[365568232,1749791435896,-500.0,0.00022611,2]
[365568233,1749791435907,-500.0,0.00022611,2]
[365568234,1749791435916,-500.0,0.00022611,2]
[365568235,1749791435928,-500.0,0.00022611,2]
[365568236,1749791435938,-500.0,0.00022611,2]
[365568237,1749791435948,-500.0,0.00022611,2]
[365568238,1749791435958,-3093.16700575,0.00022624,7]
[365568239,1749791435967,-224.14810173,0.00022719,2]
[365568240,1749791435977,-460.0,0.0002272,4]
[365568241,1749791435987,-307.17425313,0.0002272,4]
[365568242,1749791435996,-460.0,0.0002272,4]
[365568243,1749791436005,-460.0,0.0002272,4]
[365568244,1749791436015,-357.80069075,0.0002272,4]
[365568245,1749791436025,-499.17079443,0.0002272,4]
[365568246,1749791436034,-460.73312557,0.0002272,4]
[365568247,1749791436043,-383.3422324,0.0002272,4]
[365568248,1749791436053,-499.83460941,0.0002272,4]
[365568249,1749791436064,-460.0,0.0002272,4]
[365568250,1749791436074,-460.0,0.0002272,4]
[365568251,1749791436083,-494.97232119,0.0002272,4]
[365568252,1749791436093,-460.0,0.0002272,4]
[365568253,1749791436102,-460.0,0.0002272,4]
[365568254,1749791436111,-460.0,0.0002272,4]
[365568255,1749791436121,-464.7,0.0002272,4]
[365568256,1749791436131,-3093.16700575,0.00022728,7]
[365568257,1749791436352,-465.29773673,0.00022738,4]
[365568258,1749791436363,-202.2789192,0.00022738,2]
[365568259,1749791436373,-460.0,0.00022738,4]
[365568260,1749791436383,-576.77,0.00022738,4]
[365568261,1749791436393,-460.0,0.00022738,4]
[365568262,1749791436403,-460.0,0.00022739,2]
[365568263,1749791436412,-460.0,0.00022773,4]
[365568264,1749791436422,-460.0,0.00022773,4]
[365568265,1749791436432,-460.0,0.00022773,4]
[365568266,1749791436442,-460.0,0.00022774,4]
[365568267,1749791436453,-460.0,0.00022774,4]
[365568268,1749791436463,-460.0,0.00022774,4]
[365568269,1749791436472,-460.0,0.00022774,4]
[365568270,1749791436482,-460.0,0.00022774,4]
[365568271,1749791436492,-498.70826101,0.00022774,4]
[365568272,1749791436502,-460.0,0.00022774,4]
[365568273,1749791436512,-460.0,0.00022774,4]
[365568274,1749791436521,-500.0,0.00022785,2]
[365568275,1749791436531,-160.0,0.0002281,2]
[365568276,1749791436541,-3093.16700575,0.00022831,8]
[365568277,1749791436551,-835.28007164,0.00022871,2]
[365568278,1749791436561,-229.78555783,0.00022871,2]
[365568279,1749791436571,-645.2369462,0.00022892,2]
[365568280,1749791436581,-3093.16700575,0.00022934,8]
[365568281,1749791436592,-315.3059208,0.00022963,10]
[365568282,1749791436602,-346.9454993,0.00022973,2]
[365568283,1749791436613,-504.03301066,0.00022973,2]
[365568284,1749791436623,-504.93114512,0.00022973,2]
[365568285,1749791436632,-500.0,0.00022973,2]
[365568286,1749791436642,-500.0,0.00022973,2]
[365568287,1749791436652,-235.15645086,0.00022973,2]
[365568288,1749791436662,-500.25411069,0.00022973,2]
[365568289,1749791436672,-460.56,0.00022982,3]
[365568290,1749791436682,-152.141869,0.00022992,7]
[365568291,1749791436692,-151.0,0.00022993,7]
[365568292,1749791436702,-151.0,0.00022993,7]
[365568293,1749791436711,-460.0,0.00022994,4]
[365568294,1749791436720,-460.0,0.00022994,4]
[365568295,1749791436730,-460.0,0.00022994,4]
[365568296,1749791436740,-460.0,0.00022994,4]
[365568297,1749791436750,-460.0,0.00022994,4]
[365568298,1749791436760,-497.27658735,0.00022994,4]
[365568299,1749791436769,-460.0,0.00022994,4]
[365568300,1749791436779,-464.7,0.00022994,4]
[365568301,1749791436788,-1000.0,0.00023,2]
[365568302,1749791436798,-8849.20418709,0.00023,2]
[365568303,1749791436897,-7526.06551488,0.00023,2]
[365568304,1749791436917,-1374.95308181,0.00023,2]
[365568337,1749791438815,-276.35276853,0.00021392,2]
[365568338,1749791438825,-200.10804946,0.00021403,2]
[365568339,1749791438833,-278.21992796,0.00021403,4]
[365568340,1749791438929,-181.78007204,0.00021403,4]
[365568341,1749791438939,-460.0,0.00021403,4]
[365568342,1749791438953,-460.0,0.00021677,4]
[365568343,1749791438962,-460.0,0.00021677,4]
[365568344,1749791438972,-460.0,0.00021951,4]
[365568345,1749791438982,-460.0,0.00021951,4]
[365568346,1749791438991,-460.0,0.00022225,4]
[365568347,1749791439000,-2263.04718001,0.00022399,2]
[365568348,1749791439010,-153.284388,0.00022499,7]
[365568349,1749791439020,-460.0,0.00022499,4]
[365568350,1749791439029,-460.0,0.00022773,4]
[365568351,1749791439039,-642.74417218,0.00023,2]
[365568353,1749791439050,-296.69436949,0.00023,2]
[365568360,1749791439160,-594.03777952,0.00023012,4]
[365568362,1749791439170,-576.77,0.00023012,4]
[365568364,1749791439179,-460.0,0.00023012,4]
[365568366,1749791439189,-460.0,0.00023013,2]
[365568368,1749791439202,-365.0707398,0.00023014,2]
[365568370,1749791439211,-452.65919059,0.00023021,2]
[365568372,1749791439224,-550.09311886,0.00023021,2]
[365568374,1749791439233,-1004.40342295,0.00023021,2]
[365568376,1749791439243,-510.10520815,0.00023021,2]
[365568378,1749791439253,-1018.90805711,0.00023021,2]
[365568380,1749791439263,-507.52815332,0.00023021,2]
[365568382,1749791439273,-1006.96582777,0.00023021,2]
[365568384,1749791439283,-460.0,0.00023037,4]
[365568386,1749791439293,-1672.47397096,0.00023038,8]
[365568389,1749791439306,-260.03705514,0.00023038,8]
[365568449,1749791440921,-460.0,0.00022225,4]
[365568450,1749791440932,-460.0,0.00022499,4]
[365568452,1749791440942,-180.0,0.00022773,4]
[365568758,1749791443862,-460.0,0.00021403,2]
[365568760,1749791443872,-100.0,0.00022773,4]
[365569030,1749791446690,-460.0,0.00021677,2]
[365569032,1749791446700,-372.98,0.00021951,2]
[365569067,1749791447023,-87.02,0.00021951,2]
[365569069,1749791447034,-460.37886137,0.00022225,2]
[365569071,1749791447044,-180.0,0.00022773,4]
[365569073,1749791447053,-1160.65597965,0.00023038,8]
[365569075,1749791447063,-460.0,0.00023047,4]
[365569077,1749791447072,-460.0,0.00023047,4]
[365569079,1749791447082,-460.0,0.00023047,4]
[365569081,1749791447091,-460.0,0.00023047,4]
[365569083,1749791447101,-460.0,0.00023047,4]
[365569085,1749791447110,-460.0,0.00023048,4]
[365569087,1749791447120,-460.0,0.00023048,4]
[365569089,1749791447128,-460.0,0.00023048,4]
[365569091,1749791447138,-460.0,0.00023048,4]
[365569093,1749791447147,-460.0,0.00023048,4]
[365569095,1749791447158,-3093.16700575,0.00023141,8]
[365569097,1749791447167,-645.23694619,0.00023144,2]
[365569099,1749791447177,-151.35033182,0.00023159,2]
[365569102,1749791447192,-5000.0,0.00023159,2]
[365569104,1749791447207,-3093.16700575,0.00023245,8]
[365569107,1749791447222,-165.79103727,0.0002326,2]
[365569109,1749791447236,-460.0,0.00023268,4]
[365569111,1749791447248,-460.0,0.00023268,4]
[365569114,1749791447258,-460.0,0.00023268,4]
[365569116,1749791447273,-460.0,0.00023268,4]
[365569119,1749791447286,-460.0,0.00023268,4]
[365569121,1749791447299,-583.89597467,0.00023268,4]
[365569123,1749791447313,-464.7,0.00023268,4]
[365569126,1749791447325,-420.0,0.00023273,2]
[365569128,1749791447338,-168.0,0.00023276,2]
[365569130,1749791447351,-576.77,0.00023286,4]
[365569133,1749791447365,-460.0,0.00023286,4]
[365569135,1749791447379,-460.0,0.00023287,2]
[365569137,1749791447391,-151.0,0.000233,10]
[365569140,1749791447403,-460.0,0.00023321,4]
[365569142,1749791447415,-460.0,0.00023321,4]
[365569144,1749791447427,-460.0,0.00023321,4]
[365569146,1749791447439,-460.0,0.00023321,4]
[365569149,1749791447452,-460.0,0.00023321,4]
[365569151,1749791447465,-552.12,0.00023322,4]
[365569154,1749791447478,-504.0926089,0.00023322,4]
[365569156,1749791447490,-460.0,0.00023322,4]
[365569158,1749791447502,-460.0,0.00023322,4]
[365569160,1749791447513,-460.0,0.00023322,4]
[365569162,1749791447524,-3093.16700575,0.00023348,9]
[365569165,1749791447536,-645.23694619,0.00023396,2]
[365569167,1749791447549,-151.0,0.000234,9]
[365569169,1749791447561,-1680.0,0.00023431,2]
[365569171,1749791447572,-2065.2,0.0002344,3]
[365569174,1749791447584,-1636.51,0.0002344,3]
[365569176,1749791447596,-818.25,0.0002344,3]
[365569178,1749791447610,-409.13,0.0002344,3]
[365569180,1749791447622,-204.56,0.0002344,3]
[365569183,1749791447635,-613.72,0.0002344,3]
[365569185,1749791447649,-151.0,0.0002344,7]
[365569187,1749791447660,-151.0,0.0002344,7]
[365569189,1749791447670,-151.0,0.0002344,7]
[365569191,1749791447680,-549.525627,0.0002344,7]
[365569194,1749791447691,-549.525627,0.0002344,7]
[365569196,1749791447703,-151.0,0.0002344,7]
[365569198,1749791447716,-151.0,0.0002345,7]
[365569200,1749791447729,-151.0,0.0002345,7]
[365569203,1749791447741,-201.606997,0.0002345,7]
[365569205,1749791447752,-549.525627,0.0002345,7]
[365569207,1749791447763,-549.525627,0.0002345,7]
[365569209,1749791447774,-151.0,0.0002345,7]
[365569211,1749791447785,-154.958508,0.00023451,7]
[365569214,1749791447796,-153.217292,0.00023451,7]
[365569216,1749791447807,-151.0,0.00023451,7]
[365569218,1749791447819,-151.0,0.00023451,7]
[365569220,1749791447829,-151.0,0.00023451,7]
[365569222,1749791447839,-151.0,0.00023451,7]
[365569224,1749791447854,-3093.16700575,0.00023452,9]
[365569226,1749791447864,-601.57766368,0.00023452,2]
[365569228,1749791447875,-151.0,0.00023473,7]
[365569230,1749791447885,-1000.0,0.000235,2]
[365569233,1749791447897,-349.526023,0.00023519,3]
[365569235,1749791447909,-526.54056509,0.00023521,2]
[365569237,1749791447920,-500.70202936,0.00023521,2]
[365569239,1749791447931,-486.78785527,0.00023542,4]
[365569241,1749791447942,-460.0,0.00023542,4]
[365569243,1749791447953,-460.0,0.00023542,4]
[365569246,1749791447965,-460.0,0.00023542,4]
[365569248,1749791447976,-398.22493095,0.00023542,4]
[365569250,1749791447987,-464.7,0.00023542,4]
[365569252,1749791447998,-168.0,0.00023552,2]
[365569254,1749791448010,-3093.16700575,0.00023555,9]
[365569256,1749791448021,-576.77,0.0002356,4]
[365569258,1749791448031,-496.73652772,0.0002356,4]
[365569260,1749791448043,-200.0,0.00023561,4]
[365569263,1749791448055,-265.48253308,0.00023561,4]
[365569265,1749791448067,-460.0,0.00023561,2]
[365569267,1749791448078,-420.0,0.00023562,2]
[365569269,1749791448089,-420.0,0.00023562,2]
[365569271,1749791448100,-151.0,0.00023589,7]
[365569273,1749791448111,-357.891256,0.00023589,7]
[365569275,1749791448122,-357.891256,0.00023589,7]
[365569277,1749791448134,-460.0,0.00023595,4]
[365569280,1749791448145,-460.0,0.00023595,4]
[365569282,1749791448157,-460.0,0.00023595,4]
[365569283,1749791448168,-460.0,0.00023595,4]
[365569284,1749791448179,-460.0,0.00023595,4]
[365569285,1749791448191,-460.0,0.00023596,4]
[365569286,1749791448203,-460.0,0.00023596,4]
[365569287,1749791448215,-460.0,0.00023596,4]
[365569288,1749791448227,-12531.02669373,0.00023597,2]
[365569289,1749791448239,-151.0,0.000236,5]
[365569290,1749791448251,-151.0,0.00023612,7]
[365569291,1749791448262,-151.0,0.00023612,7]
[365569292,1749791448277,-2263.04718,0.00023617,2]
[365569293,1749791448288,-168.0,0.00023647,2]
[365569294,1749791448300,-156.037638,0.00023648,7]
[365569295,1749791448311,-151.0,0.00023648,7]
[365569296,1749791448323,-645.23694619,0.00023648,2]
[365569297,1749791448335,-3093.16700575,0.00023659,9]
[365569298,1749791448347,-2545.54,0.0002369,10]
[365569299,1749791448357,-151.0,0.00023699,7]
[365569300,1749791448368,-151.0,0.00023699,7]
[365569301,1749791448378,-151.0,0.00023699,7]
[365569302,1749791448389,-151.0,0.00023699,7]
[365569303,1749791448400,-500.0,0.00023699,2]
[365569304,1749791448411,-160.0,0.00023699,2]
[365569305,1749791448421,-12600.44310472,0.000237,2]
[365570924,1749791747430,-200.0,0.00019887,2]
[365570925,1749791756759,400.0,0.00024658,120]
[365570931,1749791805514,465.129,0.00024934,60]
[365570933,1749791898128,-254.69690413,0.00019887,2]
[365570934,1749791898150,-373.30309587,0.00020593,2]
[365570936,1749792029495,237.743988,0.00013699,2]
[365570938,1749792099288,1939.04631232,0.00024936,120]
[365570939,1749792100973,-5915.5929759,0.00019498,2]
[365570940,1749792100994,-226.65036198,0.00019718,2]
[365570941,1749792101016,-188.796925,0.00019875,2]
[365570942,1749792101039,-237.743988,0.00020187,2]
[365570943,1749792101079,-300.0,0.00020326,2]
[365570944,1749792101103,-300.0,0.00020326,2]
[365570945,1749792101125,-300.0,0.00020326,2]
[365570946,1749792101147,-300.0,0.00020326,2]
[365570947,1749792101168,-24900.0,0.00020327,2]
[365570948,1749792101189,-296.21574912,0.00020327,2]
[365570950,1749792238747,-118.02550488,0.00020327,2]
[365570951,1749792238770,-32.97449512,0.00020593,2]
[365570958,1749792387294,3850.0,0.00018,2]
[365570967,1749792445104,-235.74076,0.00019775,2]
[365570968,1749792445126,-226.3546816,0.00019833,2]
[365570969,1749792445148,-406.9423503,0.00020387,2]
[365570970,1749792453074,-1829.76493253,0.00020387,2]
[365570971,1749792457522,1000.0,0.00024,120]
[365570974,1749792519040,452.999999,0.0002,120]
[365570976,1749792542451,300.0,0.00017999,2]
[365570977,1749792546114,-70531.98771919,0.00018,2]
[365570978,1749792546140,-420.0,0.00019639,2]
[365570979,1749792546162,-1718.9391287,0.0001978,2]
[365570980,1749792546185,-2763.29271717,0.00020183,2]
[365570981,1749792546208,-372.193,0.00020447,2]
[365570982,1749792546233,-180.36399387,0.00020447,2]
[365570983,1749792546258,-500.0,0.00020593,2]
[365570984,1749792546280,-1200.0,0.00020743,2]
[365570985,1749792546304,-300.0,0.00020743,2]
[365570986,1749792546326,-3538.52216467,0.00020744,2]
[365570987,1749792546347,-666.0,0.0002094,2]
[365570988,1749792546369,-3090.89,0.0002099,10]
[365570989,1749792546395,-340.70010764,0.00021,2]
[365570990,1749792546417,-205.54402211,0.00021,2]
[365570991,1749792546440,-1000.0,0.00021,21]
[365570992,1749792546461,-46787.65141065,0.00021,2]
[365570993,1749792546483,-300.0,0.00021094,2]
[365570994,1749792546506,-300.0,0.00021094,2]
[365570995,1749792546528,-300.0,0.00021094,2]
[365570996,1749792546550,-329.86361584,0.00021095,4]
[365570997,1749792546573,-460.0,0.00021095,4]
[365570998,1749792546596,-486.78785527,0.00021095,4]
[365570999,1749792546620,-241.85705686,0.00021095,4]
[365571000,1749792546646,-490.36798184,0.00021095,4]
[365571001,1749792546668,-460.0,0.00021095,4]
[365571002,1749792546689,-158.8399287,0.000211,2]
[365571003,1749792546714,-573.6747916,0.000211,2]
[365571004,1749792546741,-573.6747916,0.000211,2]
[365571005,1749792546764,-567.285264,0.000211,2]
[365571006,1749792546785,-307.9145514,0.000211,2]
[365571007,1749792546807,-321.70528757,0.00021352,2]
[365571008,1749792546832,-460.0,0.00021369,4]
[365571009,1749792546855,-460.0,0.00021369,4]
[365571010,1749792546879,-156.587,0.0002139,2]
[365571011,1749792546903,-3750.53503205,0.0002139,2]
[365571012,1749792546928,-460.0,0.00021402,4]
[365571013,1749792546953,-460.0,0.00021402,4]
[365571014,1749792546977,-460.0,0.00021402,4]
[365571015,1749792547001,-460.0,0.00021402,4]
[365571016,1749792547025,-460.0,0.00021402,4]
[365571017,1749792547046,-873.1,0.00021402,4]
[365571018,1749792547071,-561.03659526,0.00021402,4]
[365571019,1749792570167,-507.60271783,0.00021,9]
[365571020,1749792570191,-10.57340474,0.00021402,4]
[365571021,1749792570211,-379.84888959,0.00021402,4]
[365571022,1749792570237,-460.0,0.00021402,4]
[365571023,1749792570259,-483.6561122,0.00021403,4]
[365571024,1749792570282,-460.0,0.00021403,4]
[365571025,1749792570304,-460.0,0.00021403,4]
[365571026,1749792570325,-460.0,0.00021403,2]